[Event "ESP-ch Rapid 2018"]
[Site "Linares"]
[Date "2018.08.19"]
[Round "6"]
[White "Alvarez Serrano, Carlos"]
[Black "Domingo Nunez, Alejandro"]
[Result "0-1"]
[ECO "A48"]
[WhiteElo "2225"]
[BlackElo "2373"]
[Annotator "NA"]
[PlyCount "70"]
[EventDate "2018.08.19"]
[EventType "team-tourn"]
[EventCountry "ESP"]
[SourceTitle "playchess.com"]
[Source "ChessBase"]
[SourceQuality "1"]
[TimeControl "900+5"]

1. d4 {[%emt 0:00:00]} Nf6 {[%emt 0:00:00]} 2. Nf3 {[%emt 0:00:00]} g6 {[%emt 0:00:00]} 3. c4 {[%emt 0:00:02]} Bg7 {[%emt 0:00:00]} 4. g3 {[%emt 0:00:01]} d6 {[%emt 0:00:01]} 5. Bg2 {[%emt 0:00:01]} O-O {[%emt 0:00:01]} 6. O-O {[%emt 0:00:02]} Nbd7 {[%emt 0:00:01]} 7. Nc3 {[%emt 0:00:01]} c5 {[%emt 0:00:01]} 8. b3 {[%emt 0:00:18]} Rb8 {[%emt 0:00:01]} 9. e4 {[%emt 0:00:25]} Ne8 {[%emt 0:00:03]} 10. Be3 {[%emt 0:00:22]} Nc7 {[%emt 0:00:01]} 11. Rc1 {[%emt 0:00:12]} a6 {[%emt 0:00:59]} 12. dxc5 {[%emt 0:01:25]} dxc5 {[%emt 0:00:38]} 13. Na4 {[%emt 0:00:05]} Ne6 {[%emt 0:00:19]} 14. Bh3 {[%emt 0:00:22]} b6 {[%emt 0:00:16]} 15. Qd3 {[%emt 0:01:06]} Nd4 {[%emt 0:00:44]} 16. Bf4 {[%emt 0:01:01]} e5 {[%emt 0:00:46]} 17. Bxd7 {[%emt 0:00:19]} exf4 {[%emt 0:00:36]} 18. Bxc8 {[%emt 0:00:25]} Qxc8 {[%emt 0:00:09]} 19. Nxd4 {[%emt 0:00:12]} Rd8 {[%emt 0:01:33]} 20. Nc3 {[%emt 0:00:34]} Rxd4 {[%emt 0:00:14]} 21. Qf3 {[%emt 0:00:01]} fxg3 {[%emt 0:00:28]} 22. hxg3 {[%emt 0:00:43]} Qe6 {[%emt 0:00:15]} 23. Rce1 {[%emt 0:00:19]} b5 {[%emt 0:01:23]} 24. cxb5 {[%emt 0:00:16]} axb5 {[%emt 0:00:01]} 25. Nd5 {[%emt 0:00:12]} Qe5 {[%emt 0:03:05]} 26. Nf4 {[%emt 0:02:35]} c4 {[%emt 0:00:43]} 27. Re3 {[%emt 0:00:01]} Rd2 {[%emt 0:00:45]} 28. Re2 {[%emt 0:00:40]} Rbd8 {[%emt 0:00:11]} 29. bxc4 {[%emt 0:00:15]} bxc4 {[%emt 0:00:02]} 30. Rxd2 {[%emt 0:00:10]} Rxd2 {[%emt 0:00:01]} 31. Rc1 {[%emt 0:00:22]} c3 {[%emt 0:00:26]} 32. Nd5 {[%emt 0:00:01]} c2 {[%emt 0:00:19]} 33. Qb3 {[%emt 0:01:05]} Qb2 {[%emt 0:00:17]} 34. Kg2 {[%emt 0:01:47]} Qxb3 {[%emt 0:00:27]} 35. axb3 {[%emt 0:00:02]} Bb2 {[%emt 0:00:01]} 0-1

[Event "ESP-ch Rapid 2018"]
[Site "Linares"]
[Date "2018.08.19"]
[Round "6"]
[White "Vinuela Diaz, Saul"]
[Black "Crespo Ruiz, Manuel Maria"]
[Result "0-1"]
[ECO "D12"]
[WhiteElo "2216"]
[BlackElo "2026"]
[Annotator "NA"]
[PlyCount "94"]
[EventDate "2018.08.19"]
[EventType "team-tourn"]
[EventCountry "ESP"]
[SourceTitle "playchess.com"]
[Source "ChessBase"]
[SourceQuality "1"]
[TimeControl "900+5"]

1. Nf3 {[%emt 0:00:00]} Nf6 {[%emt 0:00:06]} 2. c4 {[%emt 0:00:00]} c6 {[%emt 0:00:01]} 3. d4 {[%emt 0:00:05]} d5 {[%emt 0:00:05]} 4. e3 {[%emt 0:00:03]} Bf5 {[%emt 0:00:21]} 5. Nc3 {[%emt 0:00:03]} e6 {[%emt 0:00:03]} 6. Nh4 {[%emt 0:00:05]} Bg6 {[%emt 0:00:03]} 7. Nxg6 {[%emt 0:00:17]} hxg6 {[%emt 0:00:02]} 8. Qc2 {[%emt 0:00:24]} Nbd7 {[%emt 0:00:03]} 9. Be2 {[%emt 0:00:09]} Bd6 {[%emt 0:00:08]} 10. h3 {[%emt 0:00:14]} Qe7 {[%emt 0:00:09]} 11. O-O {[%emt 0:00:25]} O-O {[%emt 0:00:40]} 12. e4 {[%emt 0:00:25]} dxe4 {[%emt 0:00:07]} 13. Nxe4 {[%emt 0:00:02]} Nxe4 {[%emt 0:00:06]} 14. Qxe4 {[%emt 0:00:02]} e5 {[%emt 0:01:27]} 15. c5 {[%emt 0:01:32]} exd4 {[%emt 0:00:30]} 16. Qxd4 {[%emt 0:00:52]} Bxc5 {[%emt 0:00:23]} 17. Qc4 {[%emt 0:00:40]} Nb6 {[%emt 0:00:17]} 18. Qc2 {[%emt 0:00:08]} Nd5 {[%emt 0:00:57]} 19. Bc4 {[%emt 0:00:10]} Rad8 {[%emt 0:00:13]} 20. Bd2 {[%emt 0:00:58]} Bb6 {[%emt 0:00:44]} 21. Rae1 {[%emt 0:01:30]} Qf6 {[%emt 0:02:18]} 22. Qc1 {[%emt 0:00:44]} Qd4 {[%emt 0:00:38]} 23. Bg5 {[%emt 0:00:28]} Rd7 {[%emt 0:00:54]} 24. Rd1 {[%emt 0:00:38]} Qc5 {[%emt 0:00:38]} 25. a3 {[%emt 0:00:29]} a5 {[%emt 0:00:20]} 26. Rd3 {[%emt 0:01:15]} Qd6 {[%emt 0:02:04]} 27. Rfd1 {[%emt 0:01:19]} Qe5 {[%emt 0:00:37]} 28. Bh4 {[%emt 0:00:42]} Re8 {[%emt 0:00:47]} 29. Bg3 {[%emt 0:00:11]} Qe4 {[%emt 0:00:24]} 30. Rf3 {[%emt 0:00:19]} Red8 {[%emt 0:00:26]} 31. Re1 {[%emt 0:00:12]} Qd4 {[%emt 0:00:16]} 32. b3 {[%emt 0:00:54]} Ba7 {[%emt 0:00:43]} 33. a4 {[%emt 0:00:02]} Qc5 {[%emt 0:00:11]} 34. Bh4 {[%emt 0:00:15]} Rf8 {[%emt 0:00:10]} 35. Qg5 {[%emt 0:00:11]} b5 {[%emt 0:00:15]} 36. axb5 {[%emt 0:00:31]} cxb5 {[%emt 0:00:01]} 37. Bd3 {[%emt 0:00:10]} Nc7 {[%emt 0:00:32]} 38. Qg4 {[%emt 0:00:15]} Rd4 {[%emt 0:00:05]} 39. Qg3 {[%emt 0:00:30]} Qb4 {[%emt 0:00:02]} 40. Rc1 {[%emt 0:00:22]} Ne6 {[%emt 0:00:15]} 41. Qe5 {[%emt 0:00:18]} Rxh4 {[%emt 0:00:05]} 42. Bxg6 {[%emt 0:00:11]} Qd4 {[%emt 0:00:18]} 43. Bxf7+ {[%emt 0:00:10]} Rxf7 {[%emt 0:00:03]} 44. Qxe6 {[%emt 0:00:05]} Rhf4 {[%emt 0:00:06]} 45. Rc8+ {[%emt 0:00:11]} Kh7 {[%emt 0:00:01]} 46. Qe8 {[%emt 0:00:18]} Rxf3 {[%emt 0:00:04]} 47. gxf3 {[%emt 0:00:05]} Qxf2+ 0-1

[Event "ESP-ch Rapid 2018"]
[Site "Linares"]
[Date "2018.08.19"]
[Round "6"]
[White "De La Fuente Gonzalez, Francisco"]
[Black "Camacho Collados, Marcos"]
[Result "0-1"]
[ECO "A05"]
[WhiteElo "2174"]
[BlackElo "2393"]
[Annotator "NA"]
[PlyCount "68"]
[EventDate "2018.08.19"]
[EventType "team-tourn"]
[EventCountry "ESP"]
[SourceTitle "playchess.com"]
[Source "ChessBase"]
[SourceQuality "1"]
[TimeControl "900+5"]

1. Nf3 {[%emt 0:00:00]} Nf6 {[%emt 0:00:00]} 2. c4 {[%emt 0:00:00]} b6 {[%emt 0:00:00]} 3. g3 {[%emt 0:00:00]} Bb7 {[%emt 0:00:01]} 4. Bg2 {[%emt 0:00:01]} e6 {[%emt 0:00:01]} 5. O-O {[%emt 0:00:06]} Be7 {[%emt 0:00:02]} 6. Nc3 {[%emt 0:00:03]} O-O {[%emt 0:00:02]} 7. Re1 {[%emt 0:00:01]} Bb4 {[%emt 0:00:12]} 8. a3 {[%emt 0:00:27]} Bxc3 {[%emt 0:00:03]} 9. dxc3 {[%emt 0:00:08]} d6 {[%emt 0:00:15]} 10. Bg5 {[%emt 0:00:27]} h6 {[%emt 0:00:06]} 11. Bxf6 {[%emt 0:00:02]} Qxf6 {[%emt 0:00:02]} 12. Qc2 {[%emt 0:00:17]} Nc6 {[%emt 0:01:33]} 13. Rad1 {[%emt 0:00:58]} e5 {[%emt 0:00:24]} 14. b4 {[%emt 0:00:28]} Rfe8 {[%emt 0:00:31]} 15. Nh4 {[%emt 0:00:56]} g6 {[%emt 0:00:30]} 16. Bd5 {[%emt 0:00:43]} Kg7 {[%emt 0:00:09]} 17. Qa4 {[%emt 0:00:14]} a5 {[%emt 0:01:20]} 18. Bxc6 {[%emt 0:03:43]} axb4 {[%emt 0:00:02]} 19. Bxe8 {[%emt 0:00:39]} Rxa4 {[%emt 0:00:01]} 20. Bxa4 {[%emt 0:00:02]} bxc3 {[%emt 0:00:06]} 21. Ng2 {[%emt 0:00:37]} Qd8 {[%emt 0:00:40]} 22. Ne3 {[%emt 0:01:27]} Qa8 {[%emt 0:00:01]} 23. Bc2 {[%emt 0:00:12]} Qxa3 {[%emt 0:00:09]} 24. Ra1 {[%emt 0:01:00]} Qc5 {[%emt 0:00:02]} 25. Ra7 {[%emt 0:00:25]} Bc8 {[%emt 0:00:35]} 26. Nd5 {[%emt 0:00:43]} c6 {[%emt 0:01:37]} 27. Rc7 {[%emt 0:00:27]} Be6 {[%emt 0:01:27]} 28. Ne7 {[%emt 0:00:25]} Qd4 {[%emt 0:00:08]} 29. Rd1 {[%emt 0:00:37]} Qxc4 {[%emt 0:00:01]} 30. Rxc6 {[%emt 0:00:42]} Qxe2 {[%emt 0:00:21]} 31. Rxc3 {[%emt 0:00:10]} d5 {[%emt 0:00:02]} 32. Rb1 {[%emt 0:00:50]} d4 {[%emt 0:00:12]} 33. Rc7 {[%emt 0:00:13]} d3 {[%emt 0:00:16]} 34. Bb3 {[%emt 0:00:14]} Bxb3 {[%emt 0:00:07]} 0-1

[Event "ESP-ch Rapid 2018"]
[Site "Linares"]
[Date "2018.08.19"]
[Round "6"]
[White "Salvador Lopez, Daniel"]
[Black "Perdomo Araujo, Angel Eduardo"]
[Result "1-0"]
[ECO "A45"]
[WhiteElo "2162"]
[BlackElo "2100"]
[Annotator "NA"]
[PlyCount "101"]
[EventDate "2018.08.19"]
[EventType "team-tourn"]
[EventCountry "ESP"]
[SourceTitle "playchess.com"]
[Source "ChessBase"]
[SourceQuality "1"]
[TimeControl "900+5"]

1. d4 {[%emt 0:00:00]} Nf6 {[%emt 0:00:00]} 2. Bg5 {[%emt 0:00:00]} g6 {[%emt 0:00:00]} 3. Bxf6 {[%emt 0:00:02]} exf6 {[%emt 0:00:00]} 4. e3 {[%emt 0:00:02]} d5 {[%emt 0:00:00]} 5. g3 {[%emt 0:00:02]} Bg7 {[%emt 0:00:02]} 6. Bg2 {[%emt 0:00:01]} O-O {[%emt 0:00:01]} 7. Ne2 {[%emt 0:00:02]} c6 {[%emt 0:00:05]} 8. O-O {[%emt 0:00:03]} Re8 {[%emt 0:00:02]} 9. Nd2 {[%emt 0:00:02]} Nd7 {[%emt 0:00:01]} 10. c4 {[%emt 0:00:02]} Nb6 {[%emt 0:00:06]} 11. cxd5 {[%emt 0:00:11]} Nxd5 {[%emt 0:00:02]} 12. Nc3 {[%emt 0:00:06]} Nxc3 {[%emt 0:00:09]} 13. bxc3 {[%emt 0:00:02]} f5 {[%emt 0:00:01]} 14. Nb3 {[%emt 0:00:27]} Qe7 {[%emt 0:00:04]} 15. Nc5 {[%emt 0:00:09]} Be6 {[%emt 0:00:49]} 16. Rb1 {[%emt 0:00:55]} Rab8 {[%emt 0:00:01]} 17. Nxe6 {[%emt 0:00:31]} fxe6 {[%emt 0:00:05]} 18. Qb3 {[%emt 0:00:26]} Kh8 {[%emt 0:00:03]} 19. Qa4 {[%emt 0:00:28]} a6 {[%emt 0:00:10]} 20. Rb6 {[%emt 0:00:13]} e5 {[%emt 0:00:30]} 21. Rfb1 {[%emt 0:00:07]} exd4 {[%emt 0:01:38]} 22. cxd4 {[%emt 0:00:03]} c5 {[%emt 0:00:01]} 23. Rxb7 {[%emt 0:00:25]} Qf8 {[%emt 0:00:13]} 24. Rxb8 {[%emt 0:00:26]} Rxb8 {[%emt 0:00:01]} 25. Rxb8 {[%emt 0:00:05]} Qxb8 {[%emt 0:00:01]} 26. dxc5 {[%emt 0:00:05]} Qb5 {[%emt 0:00:53]} 27. Qxb5 {[%emt 0:00:57]} axb5 {[%emt 0:00:01]} 28. a3 {[%emt 0:00:02]} Kg8 {[%emt 0:00:15]} 29. Bf1 {[%emt 0:00:07]} Kf8 {[%emt 0:00:00]} 30. Bxb5 {[%emt 0:00:08]} Ke7 {[%emt 0:00:01]} 31. Kf1 {[%emt 0:00:37]} Bb2 {[%emt 0:00:03]} 32. a4 {[%emt 0:00:03]} Ba3 {[%emt 0:00:01]} 33. c6 {[%emt 0:00:05]} Kd6 {[%emt 0:00:01]} 34. Ke2 {[%emt 0:00:18]} Bb4 {[%emt 0:00:10]} 35. f3 {[%emt 0:00:20]} Ba5 {[%emt 0:00:09]} 36. Kd3 {[%emt 0:00:08]} Bb6 {[%emt 0:00:15]} 37. e4 {[%emt 0:00:19]} fxe4+ {[%emt 0:00:10]} 38. Kxe4 {[%emt 0:00:02]} h6 {[%emt 0:00:04]} 39. f4 {[%emt 0:00:13]} Bd8 {[%emt 0:00:32]} 40. h3 {[%emt 0:00:29]} Ba5 {[%emt 0:00:09]} 41. g4 {[%emt 0:00:16]} Bc7 {[%emt 0:00:38]} 42. g5 {[%emt 0:00:18]} hxg5 {[%emt 0:00:14]} 43. fxg5 {[%emt 0:00:03]} Ba5 {[%emt 0:00:00]} 44. Kf4 {[%emt 0:00:08]} Bc7 {[%emt 0:00:22]} 45. Kg4 {[%emt 0:00:03]} Ke7 {[%emt 0:00:07]} 46. Bc4 {[%emt 0:00:18]} Kf8 {[%emt 0:00:15]} 47. h4 {[%emt 0:00:08]} Kg7 {[%emt 0:00:01]} 48. Bd3 {[%emt 0:00:34]} Kf7 {[%emt 0:00:05]} 49. h5 {[%emt 0:00:09]} gxh5+ {[%emt 0:00:01]} 50. Kxh5 {[%emt 0:00:01]} Kg7 {[%emt 0:00:03]} 51. Kg4 {[%emt 0:00:04]} 1-0

[Event "ESP-ch Rapid 2018"]
[Site "Linares"]
[Date "2018.08.19"]
[Round "6"]
[White "Cuevas Fernandez, Jose Alberto"]
[Black "Campos Gambuti, Luis Maria"]
[Result "0-1"]
[ECO "D02"]
[WhiteElo "2147"]
[BlackElo "2382"]
[Annotator "NA"]
[PlyCount "68"]
[EventDate "2018.08.19"]
[EventType "team-tourn"]
[EventCountry "ESP"]
[SourceTitle "playchess.com"]
[Source "ChessBase"]
[SourceQuality "1"]
[TimeControl "900+5"]

1. d4 {[%emt 0:00:00]} d5 {[%emt 0:00:00]} 2. Nf3 {[%emt 0:00:00]} c5 {[%emt 0:00:00]} 3. e3 {[%emt 0:00:05]} Nc6 {[%emt 0:00:00]} 4. c3 {[%emt 0:00:18]} e6 {[%emt 0:00:09]} 5. g3 {[%emt 0:00:04]} Nf6 {[%emt 0:00:07]} 6. Bg2 {[%emt 0:00:02]} Bd6 {[%emt 0:00:05]} 7. O-O {[%emt 0:00:03]} O-O {[%emt 0:00:02]} 8. Re1 {[%emt 0:00:01]} b6 {[%emt 0:00:45]} 9. b3 {[%emt 0:00:02]} Bb7 {[%emt 0:00:01]} 10. Bb2 {[%emt 0:00:01]} Qe7 {[%emt 0:00:15]} 11. Nbd2 {[%emt 0:00:02]} Rac8 {[%emt 0:00:38]} 12. Qe2 {[%emt 0:00:25]} e5 {[%emt 0:00:26]} 13. dxe5 {[%emt 0:01:50]} Nxe5 {[%emt 0:00:03]} 14. Nh4 g6 {[%emt 0:03:39]} 15. Rad1 {[%emt 0:00:28]} c4 {[%emt 0:00:08]} 16. bxc4 {[%emt 0:00:27]} Ba6 {[%emt 0:02:08]} 17. Nhf3 {[%emt 0:03:34]} Nxc4 {[%emt 0:00:06]} 18. Nxc4 {[%emt 0:00:04]} Bxc4 {[%emt 0:00:02]} 19. Qc2 {[%emt 0:00:05]} Bxa2 {[%emt 0:00:10]} 20. c4 {[%emt 0:00:59]} Rxc4 {[%emt 0:00:42]} 21. Qd3 {[%emt 0:00:31]} Rfc8 {[%emt 0:00:42]} 22. Ra1 {[%emt 0:00:25]} Ra4 {[%emt 0:00:01]} 23. Rac1 {[%emt 0:00:50]} Rac4 {[%emt 0:01:14]} 24. Ra1 {[%emt 0:00:15]} Ra4 {[%emt 0:00:01]} 25. Rac1 {[%emt 0:00:01]} Rc5 {[%emt 0:00:50]} 26. Rxc5 {[%emt 0:02:42]} Bxc5 {[%emt 0:00:02]} 27. Qc3 {[%emt 0:00:14]} Bb4 {[%emt 0:00:46]} 28. Qc8+ {[%emt 0:00:31]} Kg7 {[%emt 0:00:02]} 29. Ne5 {[%emt 0:02:02]} Bxe1 {[%emt 0:01:05]} 30. Qc6 {[%emt 0:00:30]} Rc4 {[%emt 0:00:32]} 31. Nxc4 {[%emt 0:00:11]} dxc4 {[%emt 0:00:02]} 32. Bd4 {[%emt 0:00:08]} Qe6 {[%emt 0:00:12]} 33. Qc7 {[%emt 0:00:11]} c3 {[%emt 0:00:03]} 34. Bh3 {[%emt 0:00:12]} Qxh3 0-1

[Event "ESP-ch Rapid 2018"]
[Site "Linares"]
[Date "2018.08.19"]
[Round "6"]
[White "Fernandez Torre, Ivan"]
[Black "Llobell Cortell, Enrique"]
[Result "0-1"]
[ECO "A50"]
[WhiteElo "2128"]
[BlackElo "2411"]
[Annotator "NA"]
[PlyCount "194"]
[EventDate "2018.08.19"]
[EventType "team-tourn"]
[EventCountry "ESP"]
[SourceTitle "playchess.com"]
[Source "ChessBase"]
[SourceQuality "1"]
[TimeControl "900+5"]

1. d4 {[%emt 0:00:00]} Nf6 {[%emt 0:00:00]} 2. c4 Nc6 3. Nf3 {[%emt 0:00:22]} e6 {[%emt 0:00:00]} 4. Nc3 {[%emt 0:00:31]} Bb4 {[%emt 0:00:00]} 5. e3 {[%emt 0:00:14]} Bxc3+ {[%emt 0:00:00]} 6. bxc3 {[%emt 0:00:02]} d6 {[%emt 0:00:00]} 7. Bd3 {[%emt 0:00:53]} e5 {[%emt 0:00:00]} 8. e4 {[%emt 0:00:02]} O-O {[%emt 0:00:11]} 9. O-O {[%emt 0:01:02]} h6 {[%emt 0:00:06]} 10. h3 {[%emt 0:00:59]} Re8 {[%emt 0:00:03]} 11. Re1 {[%emt 0:00:08]} b6 {[%emt 0:00:01]} 12. Qc2 {[%emt 0:01:44]} Ba6 {[%emt 0:00:05]} 13. Be3 {[%emt 0:02:03]} Na5 {[%emt 0:00:03]} 14. Nd2 {[%emt 0:00:43]} Nc6 {[%emt 0:00:14]} 15. Nf3 {[%emt 0:00:14]} exd4 {[%emt 0:00:02]} 16. Bxd4 {[%emt 0:00:48]} Ne5 {[%emt 0:00:11]} 17. Nxe5 {[%emt 0:01:27]} dxe5 {[%emt 0:00:02]} 18. Be3 {[%emt 0:00:00]} c5 {[%emt 0:00:12]} 19. a4 {[%emt 0:00:16]} Qd7 {[%emt 0:00:20]} 20. a5 {[%emt 0:00:10]} Qe6 {[%emt 0:00:02]} 21. Qe2 {[%emt 0:00:20]} Red8 {[%emt 0:00:13]} 22. axb6 {[%emt 0:00:13]} axb6 {[%emt 0:00:01]} 23. Reb1 {[%emt 0:00:16]} Nd7 {[%emt 0:00:12]} 24. Ra2 {[%emt 0:00:17]} Bb7 {[%emt 0:00:05]} 25. Rba1 {[%emt 0:00:10]} Rxa2 {[%emt 0:00:07]} 26. Rxa2 {[%emt 0:00:01]} Ra8 {[%emt 0:00:27]} 27. Rxa8+ {[%emt 0:00:29]} Bxa8 {[%emt 0:00:01]} 28. Qa2 {[%emt 0:00:09]} Bb7 {[%emt 0:00:03]} 29. Qa7 {[%emt 0:00:06]} Qc6 {[%emt 0:00:07]} 30. f3 {[%emt 0:00:07]} Bc8 {[%emt 0:00:24]} 31. Bc2 {[%emt 0:00:01]} Qb7 {[%emt 0:00:09]} 32. Qa4 {[%emt 0:00:16]} Qa6 {[%emt 0:00:37]} 33. Qc6 {[%emt 0:00:41]} Nf8 {[%emt 0:00:02]} 34. Qa4 {[%emt 0:00:27]} Qxa4 {[%emt 0:00:30]} 35. Bxa4 {[%emt 0:00:01]} Bd7 {[%emt 0:00:20]} 36. Bb5 {[%emt 0:00:06]} f6 {[%emt 0:00:07]} 37. Kf2 {[%emt 0:00:06]} Kf7 {[%emt 0:00:02]} 38. Ke2 {[%emt 0:00:01]} Ke6 {[%emt 0:00:04]} 39. Kd3 Ng6 {[%emt 0:00:01]} 40. g3 {[%emt 0:00:06]} Ne7 {[%emt 0:00:04]} 41. Bxd7+ {[%emt 0:00:25]} Kxd7 {[%emt 0:00:02]} 42. f4 {[%emt 0:00:01]} Ke6 {[%emt 0:01:24]} 43. Bc1 {[%emt 0:00:02]} Nc8 {[%emt 0:01:20]} 44. Bd2 {[%emt 0:00:08]} Nd6 {[%emt 0:00:06]} 45. Be3 {[%emt 0:00:02]} g5 {[%emt 0:02:54]} 46. f5+ {[%emt 0:00:41]} Kd7 {[%emt 0:00:04]} 47. h4 {[%emt 0:00:01]} gxh4 {[%emt 0:00:11]} 48. gxh4 {[%emt 0:00:03]} h5 {[%emt 0:00:02]} 49. Bh6 {[%emt 0:00:03]} Nf7 {[%emt 0:00:40]} 50. Bg7 {[%emt 0:00:04]} Ke7 {[%emt 0:00:05]} 51. Ke3 {[%emt 0:00:01]} Nd6 {[%emt 0:01:10]} 52. Kd3 {[%emt 0:00:00]} Kf7 {[%emt 0:00:07]} 53. Bh6 {[%emt 0:00:00]} Kg8 {[%emt 0:00:07]} 54. Be3 {[%emt 0:00:00]} Nf7 {[%emt 0:00:00]} 55. Bd2 {[%emt 0:00:06]} Kf8 {[%emt 0:00:00]} 56. Be3 {[%emt 0:00:01]} Ke7 {[%emt 0:00:00]} 57. Bd2 {[%emt 0:00:00]} Kd7 {[%emt 0:00:01]} 58. Be3 {[%emt 0:00:01]} Kc6 {[%emt 0:00:01]} 59. Bd2 {[%emt 0:00:00]} Kc7 {[%emt 0:05:36]} 60. Be3 {[%emt 0:00:21]} Nd6 {[%emt 0:00:11]} 61. Bh6 {[%emt 0:00:01]} Kd7 {[%emt 0:00:01]} 62. Bg7 {[%emt 0:00:02]} Ke7 {[%emt 0:00:02]} 63. Bh6 {[%emt 0:00:01]} b5 {[%emt 0:00:12]} 64. cxb5 {[%emt 0:00:43]} c4+ {[%emt 0:00:00]} 65. Kc2 {[%emt 0:00:23]} Nxe4 {[%emt 0:00:37]} 66. b6 {[%emt 0:00:19]} Kd7 {[%emt 0:00:02]} 67. Kb2 {[%emt 0:00:18]} Kc6 {[%emt 0:00:07]} 68. Be3 {[%emt 0:00:12]} Nd6 {[%emt 0:00:12]} 69. Ka3 {[%emt 0:00:01]} Nxf5 {[%emt 0:00:01]} 70. Bf2 {[%emt 0:00:01]} e4 {[%emt 0:00:01]} 71. Kb4 {[%emt 0:00:04]} e3 {[%emt 0:00:11]} 72. Be1 {[%emt 0:00:01]} Nd6 {[%emt 0:00:04]} 73. b7 {[%emt 0:00:06]} Kxb7 {[%emt 0:00:19]} 74. Kc5 {[%emt 0:00:01]} Nf5 {[%emt 0:00:05]} 75. Kxc4 {[%emt 0:00:00]} Kc6 76. Kd3 Kd5 {[%emt 0:00:06]} 77. c4+ {[%emt 0:00:06]} Kc5 {[%emt 0:00:01]} 78. Ke4 {[%emt 0:00:03]} Nd6+ {[%emt 0:00:03]} 79. Kxe3 {[%emt 0:00:01]} Kxc4 {[%emt 0:00:00]} 80. Kf4 {[%emt 0:00:01]} Kd5 {[%emt 0:00:02]} 81. Bf2 {[%emt 0:00:03]} Ke6 {[%emt 0:00:03]} 82. Be1 {[%emt 0:00:02]} Nf5 {[%emt 0:00:04]} 83. Bf2 {[%emt 0:00:00]} Ne7 {[%emt 0:00:01]} 84. Be1 {[%emt 0:00:01]} Ng6+ {[%emt 0:00:00]} 85. Ke4 {[%emt 0:00:04]} Ne7 {[%emt 0:00:06]} 86. Kf4 {[%emt 0:00:01]} Nd5+ {[%emt 0:00:01]} 87. Ke4 {[%emt 0:00:04]} f5+ {[%emt 0:00:07]} 88. Kf3 {[%emt 0:00:03]} Ke5 {[%emt 0:00:04]} 89. Ba5 {[%emt 0:00:12]} Ne7 {[%emt 0:00:10]} 90. Bc3+ {[%emt 0:00:04]} Ke6 {[%emt 0:00:04]} 91. Be1 {[%emt 0:00:05]} Ng6 {[%emt 0:00:02]} 92. Bf2 {[%emt 0:00:17]} Ke5 {[%emt 0:00:06]} 93. Be1 {[%emt 0:00:01]} f4 {[%emt 0:00:01]} 94. Bf2 {[%emt 0:00:10]} Kf5 {[%emt 0:00:02]} 95. Be1 {[%emt 0:00:05]} Ne5+ {[%emt 0:00:01]} 96. Kg2 {[%emt 0:00:07]} Kg4 {[%emt 0:00:01]} 97. Bc3 {[%emt 0:00:06]} Nf3 {[%emt 0:00:01]} 0-1

[Event "ESP-ch Rapid 2018"]
[Site "Linares"]
[Date "2018.08.19"]
[Round "6"]
[White "Cuesta Bustos, Raul"]
[Black "Galiana Fernandez, Adrian"]
[Result "0-1"]
[ECO "B21"]
[WhiteElo "2126"]
[BlackElo "2291"]
[Annotator "NA"]
[PlyCount "98"]
[EventDate "2018.08.19"]
[EventType "team-tourn"]
[EventCountry "ESP"]
[SourceTitle "playchess.com"]
[Source "ChessBase"]
[SourceQuality "1"]
[TimeControl "900+5"]

1. e4 {[%emt 0:00:00]} c5 {[%emt 0:00:00]} 2. d4 {[%emt 0:00:00]} cxd4 {[%emt 0:00:01]} 3. c3 {[%emt 0:00:00]} d3 {[%emt 0:00:01]} 4. Bxd3 {[%emt 0:00:00]} g6 {[%emt 0:00:01]} 5. c4 {[%emt 0:00:00]} Bg7 {[%emt 0:00:02]} 6. Nc3 {[%emt 0:00:04]} d6 {[%emt 0:00:02]} 7. h3 {[%emt 0:00:01]} Nc6 {[%emt 0:00:16]} 8. Nf3 {[%emt 0:00:02]} Nf6 {[%emt 0:00:02]} 9. O-O {[%emt 0:00:18]} Nd7 {[%emt 0:00:01]} 10. Be3 {[%emt 0:00:37]} Bxc3 {[%emt 0:00:03]} 11. bxc3 {[%emt 0:00:01]} Nc5 {[%emt 0:00:37]} 12. Bd4 {[%emt 0:01:27]} O-O {[%emt 0:01:40]} 13. Qd2 {[%emt 0:01:26]} e5 {[%emt 0:02:01]} 14. Be3 {[%emt 0:00:14]} f5 {[%emt 0:00:28]} 15. Bg5 {[%emt 0:01:25]} Qe8 {[%emt 0:00:23]} 16. Bh6 {[%emt 0:00:02]} fxe4 {[%emt 0:00:02]} 17. Bxf8 {[%emt 0:00:26]} exf3 {[%emt 0:01:20]} 18. Bxd6 {[%emt 0:00:36]} fxg2 {[%emt 0:00:03]} 19. Rfe1 {[%emt 0:03:35]} Nxd3 {[%emt 0:00:52]} 20. Qxd3 {[%emt 0:00:02]} Bf5 {[%emt 0:00:05]} 21. Qd5+ {[%emt 0:00:31]} Be6 {[%emt 0:00:01]} 22. Qxg2 {[%emt 0:00:01]} Bxc4 {[%emt 0:00:02]} 23. f4 {[%emt 0:00:42]} Be6 {[%emt 0:02:33]} 24. fxe5 {[%emt 0:00:31]} Ne7 {[%emt 0:00:00]} 25. Qxb7 {[%emt 0:00:41]} Nf5 {[%emt 0:00:14]} 26. Rab1 {[%emt 0:00:20]} Rc8 {[%emt 0:00:10]} 27. Rec1 {[%emt 0:01:06]} Qd8 {[%emt 0:00:40]} 28. Qg2 {[%emt 0:00:45]} Nh4 {[%emt 0:00:11]} 29. Qg3 {[%emt 0:00:21]} Nf5 {[%emt 0:00:14]} 30. Qf4 {[%emt 0:00:05]} g5 {[%emt 0:00:08]} 31. Qf2 {[%emt 0:00:23]} g4 {[%emt 0:00:52]} 32. Rb4 {[%emt 0:01:14]} g3 {[%emt 0:00:14]} 33. Rg4+ {[%emt 0:00:06]} Kh8 {[%emt 0:00:05]} 34. Qxa7 {[%emt 0:00:03]} Ra8 {[%emt 0:00:42]} 35. Qc7 {[%emt 0:00:08]} Qxc7 {[%emt 0:00:38]} 36. Bxc7 {[%emt 0:00:01]} Rxa2 {[%emt 0:00:01]} 37. Bd8 {[%emt 0:00:13]} h5 {[%emt 0:00:09]} 38. Bf6+ {[%emt 0:00:11]} Kh7 {[%emt 0:00:02]} 39. Rg5 {[%emt 0:00:02]} h4 {[%emt 0:00:32]} 40. Rb1 {[%emt 0:00:01]} Bd5 {[%emt 0:00:01]} 41. Rxf5 {[%emt 0:00:13]} Rh2 {[%emt 0:00:18]} 42. Kf1 {[%emt 0:00:20]} Rh1+ {[%emt 0:00:19]} 43. Ke2 {[%emt 0:00:02]} Rxb1 {[%emt 0:00:15]} 44. Bxh4 {[%emt 0:00:11]} g2 {[%emt 0:00:11]} 45. Bf2 {[%emt 0:00:03]} Bc4+ {[%emt 0:01:22]} 46. Ke3 {[%emt 0:00:05]} Re1+ {[%emt 0:00:02]} 47. Kd4 {[%emt 0:00:06]} Rf1 {[%emt 0:00:10]} 48. Ke3 {[%emt 0:00:02]} g1=Q {[%emt 0:00:03]} 49. Bxg1 {[%emt 0:00:01]} Rxf5 {[%emt 0:00:01]} 0-1